Workbook

Sheet Документ
A1: Сведения о расходах бюджета Заволжского муниципального района по разделам и подразделам классификации расходов бюджетов на 2026 год и на плановый период 2027 и 2028 годов в сравнении с исполнением за 2024 год и ожидаемым исполнением за 2025 год
M3: (руб.)
A4: Наименование | B4: Раздел, подраздел | C4: Исполнено за 2024 год | D4: Ожидаемое исполнение за 2025 год | E4: Проект на 2026 год | F4: 2026 год к исполнению за 2024 год | G4: 2026 год к ожидаемому исполнению за 2025 год | H4: Проект на 2027 год | I4: 2027 год к исполнению за 2024 год | J4: 2027 год к ожидаемому исполнению за 2025 год | K4: Проект на 2028 год | L4: 2028 год к исполнению за 2024 год | M4: 2028 год к ожидаемому исполнению за 2025 год
A5: 1 | B5: 2 | C5: 3 | D5: 4 | E5: 5 | F5: 6=5/3 | G5: 7=5/4 | H5: 8 | I5: 9=8/3 | J5: 10=8/4 | K5: 11 | L5: 12=11/3 | M5: 13=11/4
A6: ОБЩЕГОСУДАРСТВЕННЫЕ ВОПРОСЫ | B6: 0100 | C6: =SUM(C7:C12) -> 80,763,736.86 | D6: =SUM(D7:D12) -> 93,434,517.01 | E6: =SUM(E7:E12) -> 84,284,077.04 | F6: =E6/C6*100 -> 104.36 | G6: =E6/D6*100 -> 90.21 | H6: =SUM(H7:H12) -> 85,348,588.65 | I6: =H6/C6*100 -> 105.68 | J6: =H6/D6*100 -> 91.35 | K6: =SUM(K7:K12) -> 84,752,533.12 | L6: =K6/C6*100 -> 104.94 | M6: =K6/D6*100 -> 90.71
A7: Функционирование высшего должностного лица субъекта Российской Федерации и муниципального образования | B7: 0102 | C7: 3,293,146.47 | D7: 2,485,663.00 | E7: 2,494,236.00 | F7: =E7/C7*100 -> 75.74 | G7: =E7/D7*100 -> 100.34 | H7: 2,601,489.00 | I7: =H7/C7*100 -> 79.00 | J7: =H7/D7*100 -> 104.66 | K7: 2,705,549.00 | L7: =K7/C7*100 -> 82.16 | M7: =K7/D7*100 -> 108.85
A8: Функционирование Правительства Российской Федерации, высших исполнительных органов государственной власти субъектов Российской Федерации, местных администраций | B8: 0104 | C8: 41,326,528.92 | D8: 43,640,303.03 | E8: 42,952,572.84 | F8: =E8/C8*100 -> 103.93 | G8: 98.42 | H8: 44,754,243.84 | I8: 108.29 | J8: 102.55 | K8: 44,779,058.84 | L8: 108.35 | M8: 102.61
A9: Судебная система | B9: 0105 | C9: 0.00 | D9: 0.00 | E9: 73,260.58 | G9: 0.00 | H9: 0.00 | I9: 0.00 | J9: 0.00 | K9: 0.00 | L9: 0.00 | M9: 0.00
A10: Обеспечение деятельности финансовых, налоговых и таможенных органов и органов финансового (финансово-бюджетного) надзора | B10: 0106 | C10: 7,989,014.48 | D10: 10,543,174.00 | E10: 10,958,023.00 | F10: =E10/C10*100 -> 137.16 | G10: =E10/D10*100 -> 103.93 | H10: 10,940,023.00 | I10: 136.94 | J10: 103.76 | K10: 10,940,023.00 | L10: 136.94 | M10: 103.76
A11: Резервные фонды | B11: 0111 | C11: 0.00 | D11: 300,000.00 | E11: 300,000.00 | F11: 0.00 | G11: 0.00 | H11: 300,000.00 | I11: 0.00 | J11: 0.00 | K11: 300,000.00 | L11: 0.00 | M11: 0.00
A12: Другие общегосударственные вопросы | B12: 0113 | C12: 28,155,046.99 | D12: 36,465,376.98 | E12: 27,505,984.62 | F12: 97.69 | G12: 75.43 | H12: 26,752,832.81 | I12: 95.02 | J12: 73.37 | K12: 26,027,902.28 | L12: 92.44 | M12: 71.38
A13: НАЦИОНАЛЬНАЯ БЕЗОПАСНОСТЬ И ПРАВООХРАНИТЕЛЬНАЯ ДЕЯТЕЛЬНОСТЬ | B13: 0300 | C13: =SUM(C14:C15) -> 1,976,972.55 | D13: =SUM(D14:D15) -> 1,863,355.50 | E13: =SUM(E14:E15) -> 260,548.00 | F13: 13.18 | G13: 13.98 | H13: =SUM(H14:H15) -> 271,751.00 | I13: 13.75 | J13: 14.58 | K13: =SUM(K14:K15) -> 0.00 | L13: 0.00 | M13: 0.00
A14: Защита населения и территории от чрезвычайных ситуаций природного и техногенного характера, пожарная безопасность | B14: 0310 | C14: 1,621,699.00 | D14: 1,717,315.50 | E14: 256,548.00 | F14: 15.82 | G14: 14.94 | H14: 267,579.00 | I14: 16.50 | J14: 15.58 | K14: 0.00 | L14: 0.00 | M14: 0.00
A15: Другие вопросы в области национальной безопасности и правоохранительной деятельности | B15: 0314 | C15: 355,273.55 | D15: 146,040.00 | E15: 4,000.00 | F15: 1.13 | G15: 2.74 | H15: 4,172.00 | I15: 0.00 | J15: 0.00 | K15: 0.00 | L15: 0.00 | M15: 0.00
A16: НАЦИОНАЛЬНАЯ ЭКОНОМИКА | B16: 0400 | C16: =SUM(C17:C19) -> 40,172,021.94 | D16: =SUM(D17:D19) -> 112,846,681.01 | E16: =SUM(E17:E19) -> 54,331,141.45 | F16: 135.25 | G16: 48.15 | H16: =SUM(H17:H19) -> 26,658,044.55 | I16: 66.36 | J16: 23.62 | K16: =SUM(K17:K19) -> 27,606,545.56 | L16: 68.72 | M16: 24.46
A17: Сельское хозяйство и рыболовство | B17: 0405 | C17: 533,488.00 | D17: 509,337.50 | E17: 813,637.20 | F17: 152.51 | G17: 159.74 | H17: 853,337.20 | I17: 0.00 | J17: 167.54 | K17: 870,937.20 | L17: 0.00 | M17: 170.99
A18: Транспорт | B18: 0408 | C18: 350,000.00 | D18: 350,000.00 | E18: 400,000.00 | F18: 114.29 | G18: 114.29 | H18: 425,000.00 | I18: 121.43 | J18: 121.43 | K18: 442,000.00 | L18: 126.29 | M18: 126.29
A19: Дорожное хозяйство (дорожные фонды) | B19: 0409 | C19: 39,288,533.94 | D19: 111,987,343.51 | E19: 53,117,504.25 | F19: 135.20 | G19: 47.43 | H19: 25,379,707.35 | I19: 64.60 | J19: 22.66 | K19: 26,293,608.36 | L19: 66.92 | M19: 23.48
A20: ЖИЛИЩНО-КОММУНАЛЬНОЕ ХОЗЯЙСТВО | B20: 0500 | C20: =SUM(C21:C24) -> 65,607,472.18 | D20: =SUM(D21:D24) -> 115,455,514.35 | E20: =SUM(E21:E24) -> 13,047,957.45 | F20: 19.89 | G20: 11.30 | H20: =SUM(H21:H24) -> 3,535,576.26 | I20: 5.39 | J20: 3.06 | K20: =SUM(K21:K24) -> 2,072,261.78 | L20: 3.16 | M20: 1.79
A21: Жилищное хозяйство | B21: 0501 | C21: 11,504,500.56 | D21: 10,880,662.67 | E21: 5,050,726.14 | F21: 43.90 | G21: 46.42 | H21: 2,533,219.49 | I21: 22.02 | J21: 23.28 | K21: 2,072,261.78 | L21: 18.01 | M21: 19.05
A22: Коммунальное хозяйство | B22: 0502 | C22: 31,341,000.00 | D22: 74,003,779.63 | E22: 7,796,099.64 | F22: 24.88 | G22: 10.53 | H22: 801,225.10 | I22: 2.56 | J22: 1.08 | K22: 0.00 | L22: 0.00 | M22: 0.00
A23: Благоустройство | B23: 0503 | C23: 20,461,230.80 | D23: 30,571,072.05 | E23: 201,131.67 | F23: 0.98 | G23: 0.66 | H23: 201,131.67 | I23: 0.98 | J23: 0.66 | K23: 0.00 | L23: 0.00 | M23: 0.00
A24: Другие вопросы в области жилищно-коммунального хозяйства | B24: 0505 | C24: 2,300,740.82 | D24: 0.00 | E24: 0.00 | F24: 0.00 | H24: 0.00 | I24: 0.00 | K24: 0.00 | L24: 0.00
A25: ОХРАНА ОКРУЖАЮЩЕЙ СРЕДЫ | B25: 0600 | C25: =C26+C27 -> 617,734,222.48 | D25: =D26+D27 -> 5,510,942.23 | E25: 1,103,000.00 | F25: 0.18 | G25: 20.01 | H25: =H26+H27 -> 36,000.00 | I25: 0.01 | J25: 0.65 | K25: =K26+K27 -> 0.00 | L25: 0.00 | M25: 0.00
A26: Сбор, удаление отходов и очистка сточных вод | B26: 0602 | C26: 565,917.00 | D26: 95,063.11 | E26: 1,103,000.00 | F26: 194.90 | G26: 1,160.28 | H26: 36,000.00 | I26: 6.36 | J26: 37.87 | K26: 0.00 | L26: 0.00 | M26: 0.00
A27: Охрана объектов растительного и животного мира и среды их обитания | B27: 0603 | C27: 617,168,305.48 | D27: 5,415,879.12 | E27: 0.00 | F27: 0.00 | G27: 0.00 | H27: 0.00 | I27: 0.00 | J27: 0.00 | K27: 0.00 | L27: 0.00 | M27: 0.00
A28: ОБРАЗОВАНИЕ | B28: 0700 | C28: =SUM(C29:C34) -> 296,657,182.36 | D28: =SUM(D29:D34) -> 365,382,090.63 | E28: 307,728,383.01 | F28: 103.73 | G28: 84.22 | H28: =SUM(H29:H34) -> 354,493,827.39 | I28: 119.50 | J28: 97.02 | K28: =SUM(K29:K34) -> 293,306,336.87 | L28: 98.87 | M28: 80.27
A29: Дошкольное образование | B29: 0701 | C29: 100,278,698.54 | D29: 123,558,814.07 | E29: 98,746,449.30 | F29: 98.47 | G29: 79.92 | H29: 148,740,068.40 | I29: 148.33 | J29: 120.38 | K29: 86,886,942.54 | L29: 86.65 | M29: 70.32
A30: Общее образование | B30: 0702 | C30: 155,370,898.32 | D30: 189,775,343.64 | E30: 154,178,268.87 | F30: 99.23 | G30: 81.24 | H30: 151,010,158.51 | I30: 97.19 | J30: 79.57 | K30: 151,444,385.15 | L30: 97.47 | M30: 79.80
A31: Дополнительное образование детей | B31: 0703 | C31: 24,083,698.56 | D31: 29,896,346.00 | E31: 29,968,146.44 | F31: 124.43 | G31: 100.24 | H31: 30,383,900.72 | I31: 126.16 | J31: 101.63 | K31: 30,591,923.50 | L31: 127.02 | M31: 102.33
A32: Профессиональная подготовка, переподготовка и повышение квалификации | B32: 0705 | C32: 18,000.00 | D32: 56,000.00 | E32: 120,600.00 | F32: 670.00 | G32: 215.36 | H32: 121,600.00 | I32: 675.56 | J32: 217.14 | K32: 35,000.00 | L32: 194.44 | M32: 62.50
A33: Молодежная политика | B33: 0707 | C33: 111,500.00 | D33: 150,000.00 | E33: 150,000.00 | F33: 134.53 | G33: 100.00 | H33: 0.00 | I33: 0.00 | J33: 0.00 | K33: 0.00 | L33: 0.00 | M33: 0.00
A34: Другие вопросы в области образования | B34: 0709 | C34: 16,794,386.94 | D34: 21,945,586.92 | E34: 24,564,918.40 | F34: 146.27 | G34: 111.94 | H34: 24,238,099.76 | I34: 144.32 | J34: 110.45 | K34: 24,348,085.68 | L34: 144.98 | M34: 110.95
A35: КУЛЬТУРА, КИНЕМАТОГРАФИЯ | B35: 0800 | C35: =C36 -> 5,157,755.66 | D35: =D36 -> 5,946,361.34 | E35: 5,614,039.86 | F35: 108.85 | G35: 94.41 | H35: =H36 -> 5,681,416.28 | I35: 110.15 | J35: 95.54 | K35: =K36 -> 5,604,528.95 | L35: 108.66 | M35: 94.25
A36: Культура | B36: 0801 | C36: 5,157,755.66 | D36: 5,946,361.34 | E36: 5,614,039.86 | F36: 108.85 | G36: 94.41 | H36: 5,681,416.28 | I36: 110.15 | J36: 95.54 | K36: 5,604,528.95 | L36: 108.66 | M36: 94.25
A37: СОЦИАЛЬНАЯ ПОЛИТИКА | B37: 1000 | C37: =SUM(C38:C41) -> 8,904,991.09 | D37: =SUM(D38:D41) -> 10,074,457.97 | E37: =SUM(E38:E41) -> 9,007,827.48 | F37: 101.15 | G37: 89.41 | H37: =SUM(H38:H41) -> 8,240,412.48 | I37: 92.54 | J37: 81.80 | K37: =SUM(K38:K41) -> 4,745,632.48 | L37: 53.29 | M37: 47.11
A38: Пенсионное обеспечение | B38: 1001 | C38: 3,593,647.80 | D38: 4,303,976.00 | E38: 3,494,780.00 | F38: 97.25 | G38: 81.20 | H38: 3,494,780.00 | I38: 97.25 | J38: 81.20 | K38: 0.00 | L38: 0.00 | M38: 0.00
A39: Социальное обеспечение населения | B39: 1003 | C39: 595,482.50 | D39: 319,200.00 | E39: 0.00 | F39: 0.00 | G39: 0.00 | H39: 0.00 | I39: 0.00 | J39: 0.00 | K39: 0.00 | L39: 0.00 | M39: 0.00
A40: Охрана семьи и детства | B40: 1004 | C40: 2,615,860.79 | D40: 3,151,281.97 | E40: 3,194,147.48 | F40: 122.11 | G40: 101.36 | H40: 2,426,732.48 | I40: 92.77 | J40: 77.01 | K40: 2,426,732.48 | L40: 92.77 | M40: 77.01
A41: Другие вопросы в области социальной политики | B41: 1006 | C41: 2,100,000.00 | D41: 2,300,000.00 | E41: 2,318,900.00 | F41: 0.00 | G41: 100.82 | H41: 2,318,900.00 | I41: 0.00 | J41: 100.82 | K41: 2,318,900.00 | L41: 0.00 | M41: 100.82
A42: ФИЗИЧЕСКАЯ КУЛЬТУРА И СПОРТ | B42: 1100 | C42: =C44+C43 -> 12,687,319.47 | D42: =D44+D43 -> 19,951,004.91 | E42: 21,275,781.20 | F42: 167.69 | G42: 106.64 | H42: =H44+H43 -> 20,220,696.81 | I42: 159.38 | J42: 101.35 | K42: =K44+K43 -> 20,125,960.24 | L42: 158.63 | M42: 100.88
A43: Физическая культура | B43: 1101 | C43: 968,050.23 | D43: 1,081,066.63 | E43: 50,000.00 | F43: 5.17 | G43: 4.63 | H43: 50,000.00 | I43: 5.17 | J43: 4.63 | K43: 50,000.00 | L43: 5.17 | M43: 4.63
A44: Спорт высших достижений | B44: 1103 | C44: 11,719,269.24 | D44: 18,869,938.28 | E44: 21,225,781.20 | F44: 181.12 | G44: 112.48 | H44: 20,170,696.81 | I44: 172.12 | J44: 106.89 | K44: 20,075,960.24 | L44: 171.31 | M44: 106.39
A45: ОБСЛУЖИВАНИЕ ГОСУДАРСТВЕННОГО (МУНИЦИПАЛЬНОГО) ДОЛГА | B45: 1300 | C45: =C46 -> 0.00 | D45: =D46 -> 0.00 | E45: 50,000.00 | H45: =H46 -> 50,000.00 | K45: =K46 -> 50,000.00
A46: Обслуживание государственного (муниципального) внутреннего долга | B46: 1301 | C46: 0.00 | D46: 0.00 | E46: 50,000.00 | H46: 50,000.00 | K46: 50,000.00
A47: ИТОГО: | C47: =C6+C13+C16+C20+C28+C35+C37+C42+C45+C25 -> 1,129,661,674.59 | D47: =D6+D13+D16+D20+D28+D35+D37+D42+D45+D25 -> 730,464,924.95 | E47: =E6+E13+E16+E20+E28+E35+E37+E42+E45+E25 -> 496,702,755.49 | F47: 43.97 | G47: 68.00 | H47: =H6+H13+H16+H20+H28+H35+H37+H42+H45+H25 -> 504,536,313.42 | I47: 44.66 | J47: 69.07 | K47: =K6+K13+K16+K20+K28+K35+K37+K42+K45+K25 -> 438,263,799.00 | L47: 38.80 | M47: 60.00
